bitfinex-derivatives/quotes_SOLF0:USTF0_20241011
["timestamp","ask_amount","ask_price","bid_price","bid_amount"]
[1728679830426,15.25465021,145.96,145.95,5.93294864]
[1728679831623,3.426,145.95,145.93,3.4264]
[1728679831820,3.426,145.95,145.94,5.93203621]
[1728679832721,3.4259,145.96,145.94,5.93203621]
[1728679832917,0.12502,145.97,145.95,5.93203621]
[1728679833225,0.12502,145.97,145.96,5.93203621]
[1728679833619,0.12502,145.97,145.96,9.35773621]
[1728679834619,0.12502,145.97,145.96,5.93203621]
[1728679835021,0.12502,145.97,145.95,3.4259]
[1728679835227,0.12502,145.97,145.96,5.9316956]
[1728679836517,12.01052,145.97,145.96,5.9316956]
[1728679838431,0.12502,145.97,145.95,3.4257]
[1728679838630,0.12502,145.97,145.96,5.93278669]
[1728679839226,0.12502,145.97,145.96,9.35848669]
[1728679839532,0.12502,145.97,145.96,5.93278669]
[1728679840332,0.12502,145.97,145.96,14.39278669]
[1728679841030,0.12502,145.97,145.96,5.93278669]
[1728679841233,0.12502,145.97,145.96,9.35848669]
[1728679841924,0.12502,145.97,145.96,3.4257]
[1728679842232,0.12502,145.97,145.96,9.3554172]
[1728679845529,0.12502,145.97,145.96,3.4257]
[1728679845836,0.12502,145.97,145.96,9.34879291]
[1728679846729,0.12502,145.97,145.96,5.92309291]
[1728679847434,0.12502,145.97,145.96,9.34879291]
[1728679849338,0.12502,145.97,145.96,3.4257]
[1728679849537,0.12502,145.97,145.96,9.34803439]
[1728679850432,0.12502,145.97,145.96,17.80803439]
[1728679851339,0.12502,145.97,145.96,9.34803439]
[1728679853140,0.12502,145.97,145.96,3.4257]
[1728679853637,0.12502,145.97,145.96,9.34465466]
[1728679857037,0.12502,145.97,145.93,3.4263]
[1728679857237,8.46,145.95,145.93,3.4263]
[1728679857437,0.12502,145.97,145.94,5.91930601]
[1728679857643,0.12502,145.97,145.95,10.73930601]
[1728679857839,0.12502,145.97,145.96,14.37930601]
[1728679858534,0.12502,145.97,145.96,17.80500601]
[1728679860040,0.12502,145.97,145.96,9.34500601]
[1728679860535,0.12502,145.97,145.96,3.4257]
[1728679860737,0.12502,145.97,145.96,5.91794549]
[1728679861844,0.12502,145.97,145.96,9.34364549]
[1728679863342,0.12502,145.97,145.96,3.4257]
[1728679863743,0.12502,146.03,145.96,8.46]
[1728679863938,0.12502,146.03,145.95,8.28907322]
[1728679863939,8.58502,146.03,145.99,8.46]
[1728679864141,0.12502,146.03,146.0,5.91647891]
[1728679864342,0.12502,146.03,146.01,5.91647891]
[1728679864539,0.12502,146.03,145.99,8.46]
[1728679864746,0.12502,146.03,146.0,5.91285317]
[1728679864946,0.12502,146.03,146.01,5.91285317]
[1728679865144,0.12502,146.03,145.99,8.46]
[1728679865345,0.12502,146.03,146.0,5.91156781]
[1728679865549,3.54922,146.03,146.01,5.91156781]
[1728679865748,3.54922,146.03,146.0,3.4248]
[1728679866046,3.54922,146.03,146.01,5.91140412]
[1728679866245,3.54922,146.03,146.0,3.4248]
[1728679866549,3.54922,146.03,146.01,5.91038375]
[1728679866748,3.54922,146.03,146.0,3.4248]
[1728679866944,3.54922,146.03,146.01,5.91044645]
[1728679867249,3.54922,146.03,146.0,3.4248]
[1728679870154,12.00922,146.03,146.0,3.4248]
[1728679870349,12.00922,146.03,145.99,8.46]
[1728679870547,0.12502,146.03,146.01,3.4245]
[1728679871958,0.12502,146.03,145.98,4.82]
[1728679871959,8.58502,146.03,145.98,4.82]
[1728679872163,12.00932,146.03,146.0,3.4247]
[1728679873163,0.12502,146.03,146.01,3.4244]
[1728679876261,3.54912,146.03,146.01,3.4244]
[1728679876856,3.54912,146.03,146.0,11.8847]
[1728679877362,12.00912,146.03,146.0,3.4247]
[1728679877868,3.4246,146.01,146.0,4.82]
[1728679878159,3.4246,146.01,146.0,10.7275351]
[1728679878763,8.46,146.02,146.0,10.7275351]
[1728679879064,3.4245,146.01,146.0,4.82]
[1728679879263,3.4245,146.01,146.0,10.72793612]
[1728679883572,3.4245,146.01,146.0,5.90793612]
[1728679885771,3.4245,146.01,145.98,11.8852]
[1728679886276,3.4245,146.01,145.99,5.90814916]
[1728679886466,3.4245,146.01,146.0,5.90814916]
[1728679886661,3.4245,146.01,145.98,11.8852]
[1728679886865,3.4245,146.01,145.99,5.90917561]
[1728679887071,3.4245,146.01,145.98,11.8852]
[1728679887275,3.4245,146.01,145.99,5.90924216]
[1728679887473,3.4245,146.01,146.0,5.90924216]
[1728679889769,8.58502,146.03,146.0,5.90924216]
[1728679890072,0.12502,146.03,146.01,3.4245]
[1728679890474,3.54922,146.03,146.0,11.8847]
[1728679891372,3.54922,146.03,146.0,3.4247]
[1728679891572,3.4246,146.01,145.98,3.4251]
[1728679891773,3.4246,146.01,145.99,5.91162314]
[1728679892076,3.4246,146.01,146.0,5.91162314]
[1728679895270,11.8846,146.01,146.0,5.91162314]
[1728679898070,8.46,146.01,145.96,1.3126]
[1728679898265,11.8852,145.99,145.97,5.92063611]
[1728679898472,11.8852,145.99,145.98,5.92063611]
[1728679899675,11.8852,145.99,145.96,4.7383]
[1728679900876,11.8852,145.99,145.96,3.4257]
[1728679905577,3.4252,145.99,145.96,3.4257]
[1728679910584,3.4252,145.99,145.97,5.92965086]
[1728679910884,3.4252,145.99,145.98,5.92965086]
[1728679911775,3.4252,145.99,145.96,3.4257]
[1728679911980,3.4252,145.99,145.98,5.93016255]
[1728679912171,3.4252,145.99,145.97,5.93016255]
[1728679912376,3.4252,145.99,145.98,5.93016255]
[1728679914085,11.8852,145.99,145.98,5.93016255]
[1728679918990,3.4255,145.98,145.95,3.4259]
[1728679919295,3.4255,145.98,145.96,5.92915894]
[1728679919488,3.4255,145.98,145.97,5.92915894]
[1728679921695,11.82415947,145.99,145.92,2.7398]
[1728679921991,11.8858,145.96,145.93,5.92913671]
[1728679922192,11.8858,145.96,145.94,5.92913671]
[1728679922391,11.8858,145.96,145.95,5.92913671]
[1728679923798,3.4258,145.96,145.95,5.92913671]
[1728679925194,4.0782,146.02,145.95,5.92913671]
[1728679925397,3.4252,145.99,145.95,11.8858]
[1728679925591,3.4252,145.99,145.96,5.92525848]
[1728679925897,3.4252,145.99,145.97,5.92525848]
[1728679926094,3.4252,145.99,145.98,5.92525848]
[1728679926599,15.2736892,145.99,145.98,5.92525848]
[1728679926802,3.4258,145.96,145.93,4.8473]
[1728679926998,3.4258,145.96,145.94,5.92520961]
[1728679927191,3.4258,145.96,145.95,5.92520961]
[1728679927991,3.3884892,145.99,145.95,5.92520961]
[1728679928190,3.4254,145.98,145.96,5.92520961]
[1728679928395,3.4254,145.98,145.97,5.92520961]
[1728679929099,3.4254,145.98,145.95,3.4258]
[1728679929293,3.4254,145.98,145.96,5.92260783]
[1728679929490,3.4254,145.98,145.97,5.92260783]
[1728679930501,8.46,145.99,145.94,8.2461]
[1728679930707,3.4255,145.97,145.94,8.2461]
[1728679931894,3.4255,145.97,145.95,5.92231513]
[1728679932097,3.4255,145.97,145.96,5.92231513]
[1728679932500,8.46,145.99,145.96,5.92231513]
[1728679932700,3.4254,145.98,145.97,5.92231513]
[1728679934410,3.4254,145.98,145.95,3.4259]
[1728679934702,8.8982,146.02,145.96,9.34740623]
[1728679934703,3.4247,146.01,145.96,9.34740623]
[1728679934899,4.94502,146.03,145.97,5.92190623]
[1728679935094,0.12502,146.03,145.98,14.38190623]
[1728679935302,3.4246,146.01,145.99,5.92190623]
[1728679935603,3.4246,146.01,146.0,5.92190623]
[1728679936307,0.12502,146.03,146.0,14.38190623]
[1728679936505,0.12502,146.03,146.02,8.46]
[1728679936706,0.12502,146.03,146.02,14.37790294]
[1728679937905,0.12502,146.03,146.02,8.46]
[1728679938110,0.12502,146.03,146.02,14.3763028]
[1728679943010,3.4235,146.06,146.02,14.3763028]
[1728679943210,8.46,146.07,146.03,5.9163028]
[1728679943410,8.46,146.07,146.02,8.46]
[1728679943714,8.46,146.06,146.03,5.9087174]
[1728679943908,8.46,146.06,146.02,8.46]
[1728679944108,8.46,146.06,146.03,5.90854469]
[1728679944304,3.4237,146.05,146.02,8.46]
[1728679944509,3.4237,146.05,146.03,5.90637398]
[1728679944709,3.4237,146.05,146.02,11.8842]
[1728679944910,3.4239,146.04,146.03,5.90626259]
[1728679945304,3.4239,146.04,146.0,4.82]
[1728679945514,3.4239,146.04,146.01,9.33128553]
[1728679945815,3.4239,146.04,146.02,5.90678553]
[1728679946016,3.4239,146.04,146.01,3.4245]
[1728679946211,3.4239,146.04,146.02,5.90660943]
[1728679946412,3.4239,146.04,146.01,3.4245]
[1728679946615,3.4239,146.04,146.02,5.90566655]
[1728679946809,3.4239,146.04,146.01,3.4245]
[1728679947111,3.4239,146.04,146.02,5.90566492]
[1728679947316,3.4239,146.04,146.01,11.8845]
[1728679947505,3.4239,146.04,146.02,5.90448144]
[1728679947710,3.4239,146.04,146.01,11.8845]
[1728679947911,3.4239,146.04,146.02,5.90453988]
[1728679948115,3.4239,146.04,146.03,5.90453988]
[1728679948515,3.4239,146.04,146.01,11.8845]
[1728679948815,3.4239,146.04,146.02,5.90335469]
[1728679949012,3.4239,146.04,146.01,11.8845]
[1728679949216,3.4239,146.04,146.02,5.90329738]
[1728679949412,3.4239,146.04,146.01,11.8845]
[1728679949717,3.4239,146.04,146.02,5.90260562]
[1728679949916,3.4239,146.04,146.01,11.8845]
[1728679950213,3.4239,146.04,146.02,5.90227401]
[1728679950409,3.4239,146.04,146.01,11.8845]
[1728679950604,3.4239,146.04,146.02,5.90214128]
[1728679950810,3.4239,146.04,146.01,11.8845]
[1728679951019,3.4239,146.04,146.02,5.90214128]
[1728679951330,3.4239,146.04,146.01,11.8845]
[1728679951515,3.4239,146.04,146.02,5.90156241]
[1728679951821,3.4239,146.04,146.01,11.8845]
[1728679952021,3.4239,146.04,146.02,5.90157702]
[1728679952214,3.4239,146.04,146.01,11.8845]
[1728679952415,3.4239,146.04,146.02,5.901193]
[1728679952622,3.4239,146.04,146.01,11.8845]
[1728679952821,3.4239,146.04,146.02,3.4243]
[1728679957118,3.4239,146.04,146.01,8.46]
[1728679957314,3.4239,146.04,146.02,5.89896891]
[1728679957627,3.4239,146.04,146.01,11.8845]
[1728679957925,3.4239,146.04,146.02,5.89901477]
[1728679958128,3.4239,146.04,146.01,11.8845]
[1728679958322,3.4239,146.04,146.02,5.89901477]
[1728679958522,3.4241,146.03,146.0,8.2447]
[1728679958829,3.4241,146.03,146.01,5.89954403]
[1728679959021,3.4241,146.03,146.0,8.2447]
[1728679959220,3.4245,146.02,146.01,5.89981425]
[1728679959423,3.4245,146.02,146.0,4.82]
[1728679960218,3.4245,146.01,146.0,4.82]
[1728679960628,3.4245,146.01,146.0,10.72183483]
[1728679962121,3.4244,146.02,146.0,10.72183483]
[1728679962322,3.4244,146.02,146.0,4.82]
[1728679963320,3.4245,146.01,146.0,4.82]
[1728679964326,3.4245,146.01,146.0,10.72262234]
[1728679967333,3.4245,146.01,146.0,4.82]
[1728679967632,3.4245,146.01,146.0,10.72197807]
[1728679967832,3.4245,146.01,146.0,5.90197807]
[1728679968425,11.8845,146.01,146.0,5.90197807]
[1728679971930,3.4245,146.01,146.0,5.90197807]
[1728679973436,3.9943,146.06,146.0,5.90197807]
[1728679973631,3.4245,146.02,146.0,8.46]
[1728679974029,3.4245,146.02,146.01,5.90196991]
[1728679974728,3.4245,146.02,146.0,11.8847]
[1728679975827,3.4245,146.02,146.01,5.90278692]
[1728679976027,3.4245,146.02,145.99,3.4249]
[1728679976223,3.4245,146.02,146.0,5.90282075]
[1728679976430,3.4245,146.02,145.99,3.4249]
[1728679976637,3.4245,146.02,146.0,5.90306104]
[1728679976831,3.4245,146.02,145.99,3.4249]
[1728679977031,3.4245,146.02,146.0,5.90288192]
[1728679977331,3.4245,146.02,145.99,3.4249]
[1728679977634,11.8845,146.02,146.0,5.90266847]
[1728679977834,11.8845,146.02,146.01,5.90266847]
[1728679978533,11.8845,146.02,145.99,3.4249]
[1728679979035,11.8845,146.02,146.0,5.9027681]
[1728679979232,11.8845,146.02,146.01,5.9027681]
[1728679981038,11.8845,146.02,145.99,3.4249]
[1728679981233,11.8845,146.02,146.0,5.90260884]
[1728679981429,11.8845,146.02,146.01,5.90260884]
[1728679983131,11.8845,146.02,145.99,3.4249]
[1728679983334,11.8845,146.02,146.0,5.90343775]
[1728679983534,11.8845,146.02,145.99,3.4249]
[1728679983734,11.8845,146.02,146.0,5.90379269]
[1728679983934,11.8845,146.02,145.99,3.4249]
[1728679984335,11.8845,146.02,146.0,5.90404436]
[1728679984543,11.8845,146.02,145.99,3.4249]
[1728679984744,11.8845,146.02,146.0,5.90431195]
[1728679984944,11.8845,146.02,145.99,3.4249]
[1728679985238,3.4245,146.02,146.0,5.9040332]
[1728679985442,3.4245,146.02,145.99,3.4249]
[1728679985739,3.4245,146.02,146.0,5.90430045]
[1728679985941,3.4245,146.02,145.99,3.4249]
[1728679986241,3.4245,146.02,146.0,5.90485173]
[1728679986441,3.4245,146.02,146.01,5.90485173]
[1728679987337,3.4241,146.03,146.01,9.32935173]
[1728679987544,3.4241,146.03,145.98,8.46]
[1728679987743,3.4241,146.03,145.99,5.90531939]
[1728679988041,3.4243,146.02,146.0,9.33001939]
[1728679988342,3.4243,146.02,146.01,5.90531939]
[1728679990033,11.8843,146.02,146.01,5.90531939]
[1728679990542,3.4243,146.02,146.01,5.90531939]
[1728679991736,3.4243,146.02,145.99,3.4249]
[1728679991938,3.4243,146.02,146.0,5.90773404]
[1728679992139,3.4243,146.02,146.01,5.90773404]
[1728679997950,8.46,146.03,145.98,8.2451]
[1728679998146,3.4245,146.01,145.99,5.913352]
[1728679998345,3.4245,146.01,146.0,5.913352]
[1728680001548,3.4245,146.01,145.98,8.2451]
[1728680001745,3.4245,146.01,145.99,5.91415423]
[1728680002053,3.4245,146.01,146.0,5.91415423]
[1728680006159,3.4244,146.02,146.0,5.91415423]
[1728680006354,3.4244,146.02,146.01,5.91415423]
[1728680007263,1.3144,146.06,146.01,5.91415423]
[1728680007563,8.46,146.05,146.02,5.91415423]
[1728680007756,8.46,146.05,146.03,5.91415423]
[1728680007960,8.46,146.05,146.04,5.91415423]
[1728680008557,3.424,146.04,146.01,8.2444]
[1728680008763,11.884,146.04,146.02,5.91594736]
[1728680009155,11.884,146.04,146.03,5.91594736]
[1728680012166,11.884,146.04,146.01,8.2444]
[1728680012463,11.884,146.04,146.02,5.9153886]
[1728680012661,11.884,146.04,146.03,5.9153886]
[1728680014457,3.425,146.0,145.97,0.12502]
[1728680014658,3.425,146.0,145.97,8.37032]
[1728680014659,11.885,146.0,145.97,8.37032]
[1728680017967,8.46,146.0,145.97,4.94502]
[1728680018169,11.8852,145.98,145.97,0.12502]
[1728680026672,11.8852,145.98,145.97,5.9706746]
[1728680028177,11.8852,145.98,145.97,0.12502]
[1728680028980,11.8852,145.98,145.97,5.96895802]
[1728680029174,11.8852,145.98,145.97,0.12502]
[1728680029574,11.8852,145.98,145.97,5.96788137]
[1728680029771,3.4252,145.98,145.97,5.96788137]
[1728680029971,11.8852,145.98,145.97,5.96788137]
[1728680030367,11.8852,145.98,145.97,0.12502]
[1728680032678,3.4252,145.98,145.97,0.12502]
[1728680032878,11.8852,145.98,145.97,0.12502]
[1728680033585,3.4252,145.98,145.97,0.12502]
[1728680033776,11.8852,145.98,145.97,0.12502]
[1728680038380,3.4252,145.98,145.97,0.12502]
[1728680038583,8.46,145.98,145.97,0.12502]
[1728680039681,11.90488593,146.01,145.97,5.95976106]
[1728680039877,3.4249,146.0,145.97,0.12502]
[1728680040278,8.46,146.01,145.97,0.12502]
[1728680040474,102.82691382,146.02,145.99,8.46]
[1728680040675,102.82691382,146.02,146.0,5.83111393]
[1728680040879,102.82691382,146.02,146.0,3.4246]
[1728680044081,102.82691382,146.02,146.01,3.4245]
[1728680044582,102.82691382,146.02,146.01,9.25447584]
[1728680045281,111.28691382,146.02,146.01,5.82997584]
[1728680045487,111.28691382,146.02,145.97,0.12502]
[1728680045488,3.4252,145.99,145.97,0.12502]
[1728680045677,8.46,145.98,145.97,0.12502]
[1728680048188,3.4252,145.99,145.97,0.12502]
[1728680048393,11.8852,145.99,145.97,0.12502]
[1728680052793,11.8852,145.98,145.97,0.12502]
[1728680054389,8.46,145.98,145.91,4.94502]
[1728680054584,8.46,145.94,145.91,4.94502]
[1728680054782,8.46,145.95,145.91,4.94502]
[1728680054980,8.46,145.95,145.92,3.4266]
[1728680057591,8.46,145.95,145.91,8.37182]
[1728680058190,11.886,145.95,145.91,8.37182]
[1728680062692,3.426,145.95,145.91,8.37182]
[1728680062893,11.886,145.95,145.91,8.37182]
[1728680063093,3.426,145.95,145.91,8.37182]
[1728680063300,11.886,145.95,145.91,8.37182]
[1728680063901,11.886,145.95,145.92,3.4267]
[1728680064194,11.8856,145.97,145.92,8.46]
[1728680064398,8.46,145.96,145.91,13.40502]
[1728680064999,11.8859,145.96,145.92,3.4265]
[1728680067397,2.6725,145.99,145.93,3.4263]
[1728680067704,3.4255,145.97,145.93,8.46]
[1728680068403,3.4255,145.97,145.94,3.4262]
[1728680073701,11.8855,145.97,145.94,3.4262]
[1728680076321,8.46,145.95,145.91,0.12502]
[1728680076614,8.46,145.93,145.91,0.12502]
[1728680077006,11.8866,145.93,145.91,0.12502]
[1728680077209,8.46,145.93,145.91,0.12502]
[1728680077407,8.46,145.92,145.91,0.12502]
[1728680078115,11.8867,145.92,145.91,0.12502]
[1728680078817,3.4267,145.92,145.91,0.12502]
[1728680087424,11.8865,145.93,145.91,0.12502]
[1728680087817,8.46,145.93,145.91,0.12502]
[1728680088227,11.8864,145.93,145.91,0.12502]
[1728680088424,8.46,145.92,145.91,0.12502]
[1728680088930,11.8867,145.92,145.91,0.12502]
[1728680089226,3.4267,145.92,145.91,0.12502]
[1728680089422,11.8865,145.93,145.91,0.12502]
[1728680098238,11.8867,145.92,145.91,0.12502]
[1728680100839,3.4267,145.92,145.91,0.12502]
[1728680103547,11.8867,145.92,145.91,0.12502]
[1728680112145,3.4060851,145.93,145.91,0.12502]
[1728680112340,3.4263,145.94,145.91,0.12502]
[1728680112648,25.43736804,146.08,145.91,8.58502]
[1728680112649,1.3884,145.99,145.91,8.58502]
[1728680112842,1.3884,145.99,145.93,3.4264]
[1728680112843,3.4259,145.96,145.93,3.4264]
[1728680113244,8.46,145.97,145.92,8.46]
[1728680113540,6.2084,145.99,145.94,8.46]
[1728680113745,102.38144928,146.0,145.95,8.46]
[1728680113942,102.38144928,146.0,145.98,8.46]
[1728680114348,0.12502,146.03,145.99,8.46]
[1728680114756,8.58502,146.03,145.99,8.46]
[1728680115051,3.4245,146.02,145.98,3.4252]
[1728680115236,8.46,146.02,145.98,3.4252]
[1728680116439,3.4246,146.01,145.97,4.82]
[1728680116644,8.46,146.0,145.97,8.2454]
[1728680117550,11.8848,146.0,145.97,8.2454]
[1728680117944,8.46,146.0,145.97,8.2454]
[1728680123453,8.46,146.0,145.97,4.82]
[1728680123654,8.46,146.0,145.98,3.4252]
[1728680128847,11.8848,146.0,145.97,8.2454]
[1728680129458,3.425,145.99,145.97,4.82]
[1728680130460,3.4252,145.98,145.97,4.82]
[1728680131349,8.46,145.99,145.95,1.3998]
[1728680131553,3.4253,145.98,145.95,1.3998]
[1728680132854,3.4253,145.98,145.95,4.8257]
[1728680133958,8.46,145.99,145.95,1.3998]
[1728680134154,3.48356164,146.01,145.95,1.3998]
[1728680134356,8.46,146.0,145.95,1.3998]
[1728680134555,3.4253,145.98,145.95,4.8256]
[1728680136154,3.4253,145.98,145.95,3.4258]
[1728680136356,11.8853,145.98,145.95,3.4258]
[1728680146660,3.4253,145.98,145.95,3.4258]
[1728680148369,3.4255,145.97,145.95,3.4258]
[1728680150364,11.9358186,145.99,145.94,4.82]
[1728680150570,6.9009186,145.99,145.96,3.4256]
[1728680151171,6.9009186,145.99,145.95,8.46]
[1728680151468,6.9009186,145.99,145.97,3.4255]
[1728680152164,3.4247,146.01,145.99,3.425]
[1728680152470,6.82801529,146.01,145.99,3.425]
[1728680153564,15.28801529,146.01,145.99,3.425]
[1728680154671,15.28801529,146.01,145.98,3.4252]
[1728680156064,3.4247,146.01,145.98,3.4252]
[1728680156376,0.12502,146.03,146.02,3.4243]
[1728680156558,0.12502,146.03,146.02,11.8843]
[1728680157464,0.12502,146.03,146.02,3.4243]
[1728680165277,0.12502,146.03,146.02,11.8843]
[1728680169482,0.12502,146.03,146.02,16.6843]
[1728680170083,0.12502,146.03,146.02,8.2243]
[1728680170275,0.12502,146.03,146.02,4.8]
[1728680171278,0.12502,146.03,145.98,1.4127]
[1728680171484,3.4244,146.02,145.99,8.225]
[1728680172087,12.00922,146.03,146.0,3.4247]
[1728680187597,3.54922,146.03,146.0,3.4247]
[1728680187809,0.12502,146.03,146.01,8.46]
[1728680188096,0.12502,146.03,146.02,16.6843]
[1728680188298,0.12502,146.09,146.02,13.26]
[1728680188490,3.423,146.08,146.05,11.8834]
[1728680190697,3.423,146.08,146.05,16.6834]
[1728680191501,0.12502,146.09,146.05,13.26]
[1728680191703,0.12502,146.09,146.07,11.883]
[1728680203311,0.12502,146.09,146.08,11.8829]
[1728680203620,0.12502,146.09,146.08,16.6829]
[1728680203810,0.12502,146.09,146.08,13.26]
[1728680204421,0.12502,146.09,146.08,16.6829]
[1728680223524,3.4216,146.14,146.11,3.4221]
[1728680223728,3.4216,146.14,146.13,8.46]
[1728680228827,8.58502,146.15,146.1,13.26]
[1728680229434,8.58502,146.15,146.1,16.6824]
[1728680230035,3.4219,146.13,146.1,16.6824]
[1728680230934,3.4219,146.13,146.12,8.46]
[1728680231136,3.4216,146.14,146.12,8.46]
[1728680232660,3.54642,146.15,146.13,8.46]
[1728680233138,0.12502,146.15,146.14,8.46]
[1728680234641,0.12502,146.15,146.13,8.2216]
[1728680234842,0.12502,146.15,146.13,16.6816]
[1728680235634,3.54632,146.15,146.13,16.6816]
[1728680236038,3.4215,146.14,146.13,4.8]
[1728680238543,3.54642,146.15,146.13,13.26]
[1728680239443,3.54642,146.15,146.13,4.8]
[1728680242545,0.12502,146.15,146.13,4.8]
[1728680242738,3.4215,146.14,146.13,4.8]
[1728680246848,3.54642,146.15,146.13,4.8]
[1728680250048,3.54642,146.15,146.13,13.26]
[1728680252653,3.54642,146.15,146.13,4.8]
[1728680254655,3.4215,146.14,146.13,4.8]
[1728680259757,3.4216,146.14,146.11,8.46]
[1728680260562,3.4216,146.14,146.11,3.4222]
[1728680260761,3.4216,146.14,146.11,11.8822]
[1728680262359,3.4216,146.14,146.11,3.4222]
[1728680262560,3.4216,146.14,146.11,11.8822]
[1728680262957,3.4216,146.14,146.12,8.46]
[1728680265766,0.12502,146.15,146.13,13.26]
[1728680266069,0.12502,146.15,146.14,3.4215]
[1728680270265,0.12502,146.15,146.13,13.26]
[1728680270467,0.12502,146.15,146.13,16.6816]
[1728680271168,3.54632,146.15,146.13,16.6816]
[1728680275280,3.54632,146.15,146.13,11.8816]
[1728680275471,3.54632,146.15,146.13,4.8]
[1728680275867,0.12502,146.15,146.13,4.8]
[1728680276074,0.12502,146.15,146.13,16.6816]
[1728680278783,3.4218,146.13,146.07,2.6297]
[1728680278985,8.58502,146.15,146.1,8.46]
[1728680279279,0.12502,146.15,146.12,8.46]
[1728680279783,3.4217,146.14,146.12,11.8819]
[1728680280083,3.4215,146.14,146.12,8.46]
[1728680280479,0.12502,146.15,146.12,8.46]
[1728680280679,0.12502,146.15,146.12,13.26]
[1728680280882,3.54642,146.15,146.12,16.682]
[1728680283875,0.12502,146.15,146.13,11.8815]
[1728680284080,0.12502,146.15,146.13,8.46]
[1728680284479,0.12502,146.15,146.13,3.4216]
[1728680284680,0.12502,146.15,146.13,11.8816]
[1728680285389,3.54632,146.15,146.13,11.8816]
[1728680287486,3.54632,146.15,146.13,8.46]
[1728680288286,3.54632,146.15,146.12,16.6818]
[1728680296794,0.12502,146.15,146.14,11.8815]
[1728680297802,0.12502,146.15,146.14,8.46]
[1728680299504,0.12502,146.15,146.14,11.8815]
[1728680303410,0.12502,146.15,146.13,11.8817]
[1728680311002,0.12502,146.15,146.13,3.4217]
[1728680311203,0.12502,146.15,146.07,2.6297]
[1728680311514,8.46,146.13,146.08,13.26]
[1728680311710,3.4218,146.13,146.1,11.8822]
[1728680311911,8.58502,146.15,146.11,8.46]
[1728680312111,0.12502,146.15,146.11,8.46]
[1728680312309,3.4216,146.14,146.11,11.8821]
[1728680312509,3.4216,146.14,146.12,8.46]
[1728680318119,3.4216,146.14,146.11,16.6821]
[1728680322820,3.4219,146.13,146.11,4.8]
[1728680329122,3.4219,146.13,146.11,13.26]
[1728680330627,0.12502,146.15,146.07,2.6297]
[1728680330833,8.46,146.13,146.07,2.6297]
[1728680331123,8.46,146.12,146.07,2.6297]
[1728680331328,8.46,146.12,146.08,4.8]
[1728680331828,3.4227,146.09,146.08,4.8]
[1728680333721,0.12502,146.15,146.08,13.26]
[1728680333920,8.46,146.13,146.08,13.26]
[1728680334129,8.46,146.13,146.08,4.8]
[1728680334631,3.4226,146.1,146.08,4.8]
[1728680334924,8.46,146.1,146.06,4.8]
[1728680335632,8.46,146.11,146.06,16.6832]
[1728680336225,3.4227,146.1,146.06,16.6832]
[1728680338125,3.4228,146.09,146.06,16.6832]
[1728680344523,0.12502,146.15,146.07,8.46]
[1728680344733,4.92502,146.15,146.08,8.46]
[1728680344936,0.12502,146.15,146.1,8.46]
[1728680345126,0.12502,146.15,146.12,3.4219]
[1728680345127,3.54632,146.15,146.12,3.4219]
[1728680345327,0.12502,146.15,146.13,8.46]
[1728680345527,0.12502,146.15,146.13,11.8817]
[1728680346630,3.54632,146.15,146.13,8.46]
[1728680347229,0.12502,146.15,146.13,11.8816]
[1728680361438,0.12502,146.15,146.12,4.8]
[1728680361645,3.54632,146.15,146.13,11.8817]
[1728680361844,0.12502,146.15,146.13,11.8817]
[1728680364847,0.12502,146.15,146.14,3.4215]